[Event "Titled Tuesday Blitz March 21 Early 2023"]
[White "Ahmadzada, Ahmad"]
[Black "Carlsen, Magnus"]
[WhiteFideId "13413007"]
[BlackFideId "1503014"]
[WhiteElo "2388"]
[BlackElo "2852"]
[Result "1/2-1/2"]
[Round "06"]
[TimeControl "180+2"]
[Date "2023.03.21"]
[WhiteClock "0:00:02"]
[BlackClock "0:00:07"]

1. e4 {[%clk 0:02:59]}  c5 {[%clk 0:02:56]} 2. Nf3 {[%clk 0:02:59]}  e6 {[%clk 0:02:56]} 3. Nc3 {[%clk 0:02:57]}  a6 {[%clk 0:02:55]} 4. d4 {[%clk 0:02:56]}  cxd4 {[%clk 0:02:56]} 5. Nxd4 {[%clk 0:02:57]}  Qc7 {[%clk 0:02:53]} 6. g3 {[%clk 0:02:55]}  d6 {[%clk 0:02:46]} 7. Bg2 {[%clk 0:02:55]}  Bd7 {[%clk 0:02:45]} 8. O-O {[%clk 0:02:55]}  Nc6 {[%clk 0:02:46]} 9. Re1 {[%clk 0:02:54]}  Be7 {[%clk 0:02:43]} 10. Nxc6 {[%clk 0:02:42]}  Bxc6 {[%clk 0:02:42]} 11. Qg4 {[%clk 0:02:38]}  h5 {[%clk 0:02:42]} 12. Qe2 {[%clk 0:02:34]}  h4 {[%clk 0:02:42]} 13. Bf4 {[%clk 0:02:25]}  hxg3 {[%clk 0:02:27]} 14. hxg3 {[%clk 0:02:24]}  e5 {[%clk 0:02:25]} 15. Be3 {[%clk 0:02:20]}  Nf6 {[%clk 0:02:26]} 16. Bg5 {[%clk 0:02:19]}  Nd7 {[%clk 0:02:19]} 17. Be3 {[%clk 0:02:14]}  Rc8 {[%clk 0:02:15]} 18. a4 {[%clk 0:02:13]}  Kf8 {[%clk 0:02:15]} 19. a5 {[%clk 0:02:12]}  Nf6 {[%clk 0:02:14]} 20. Nd5 {[%clk 0:02:02]}  Nxd5 {[%clk 0:01:50]} 21. exd5 {[%clk 0:02:02]}  Bd7 {[%clk 0:01:49]} 22. Rec1 {[%clk 0:01:36]}  Qd8 {[%clk 0:01:49]} 23. c4 {[%clk 0:01:35]}  Bg5 {[%clk 0:01:47]} 24. c5 {[%clk 0:01:34]}  Bb5 {[%clk 0:01:41]} 25. Qd2 {[%clk 0:01:32]}  Bxe3 {[%clk 0:01:38]} 26. Qxe3 {[%clk 0:01:32]}  g6 {[%clk 0:01:27]} 27. cxd6 {[%clk 0:01:19]}  Rxc1+ {[%clk 0:01:26]} 28. Rxc1 {[%clk 0:01:20]}  Qxd6 {[%clk 0:01:23]} 29. Rc8+ {[%clk 0:01:02]}  Kg7 {[%clk 0:01:23]} 30. Rxh8 {[%clk 0:01:02]}  Kxh8 {[%clk 0:01:24]} 31. Qb6 {[%clk 0:01:01]}  Qb4 {[%clk 0:01:12]} 32. Qf6+ {[%clk 0:00:45]}  Kg8 {[%clk 0:01:10]} 33. Qxe5 {[%clk 0:00:44]}  Qxa5 {[%clk 0:00:57]} 34. d6 {[%clk 0:00:45]}  Qa1+ {[%clk 0:00:57]} 35. Kh2 {[%clk 0:00:44]}  Qd1 {[%clk 0:00:52]} 36. Bxb7 {[%clk 0:00:39]}  Qf1 {[%clk 0:00:37]} 37. Qf6 {[%clk 0:00:29]}  Qd1 {[%clk 0:00:23]} 38. Be4 {[%clk 0:00:15]}  Qe2 {[%clk 0:00:17]} 39. Qd4 {[%clk 0:00:07]}  Bd7 {[%clk 0:00:14]} 40. Kg2 {[%clk 0:00:07]}  Qh5 {[%clk 0:00:13]} 41. Bd5 {[%clk 0:00:05]}  Qh3+ {[%clk 0:00:12]} 42. Kg1 {[%clk 0:00:05]}  Qf5 {[%clk 0:00:13]} 43. Qe4 {[%clk 0:00:04]}  Qg5 {[%clk 0:00:09]} 44. Qe7 {[%clk 0:00:03]}  Qxd5 {[%clk 0:00:08]} 45. Qxd7 {[%clk 0:00:03]}  Qd1+ {[%clk 0:00:09]} 46. Kh2 {[%clk 0:00:03]}  Qd4 {[%clk 0:00:08]} 47. Kg2 {[%clk 0:00:01]}  Qd5+ {[%clk 0:00:08]} 48. Kg1 {[%clk 0:00:02]}  Qd1+ {[%clk 0:00:08]} 49. Kg2 {[%clk 0:00:03]}  Qd5+ {[%clk 0:00:09]} 50. Kh2 {[%clk 0:00:03]}  Qd4 {[%clk 0:00:07]} 51. Kg1 {[%clk 0:00:02]}  Qd1+ {[%clk 0:00:07]} 1/2-1/2


[Site "https://www.chess.com"]

[Event "Titled Tuesday Blitz March 21 Early 2023"]
[White "Fedoseev, Vladimir"]
[Black "Ozen, Bahadir"]
[WhiteFideId "24130737"]
[BlackFideId "6337058"]
[WhiteElo "2752"]
[BlackElo "2503"]
[Result "1-0"]
[Round "06"]
[TimeControl "180+2"]
[Date "2023.03.21"]
[WhiteClock "0:01:11"]
[BlackClock "0:00:02"]

1. Nf3 {[%clk 0:02:42]}  d5 {[%clk 0:02:56]} 2. g3 {[%clk 0:02:42]}  g6 {[%clk 0:02:56]} 3. Bg2 {[%clk 0:02:42]}  Bg7 {[%clk 0:02:56]} 4. O-O {[%clk 0:02:43]}  e5 {[%clk 0:02:56]} 5. d3 {[%clk 0:02:44]}  Nc6 {[%clk 0:02:56]} 6. Nbd2 {[%clk 0:02:43]}  Nge7 {[%clk 0:02:53]} 7. e4 {[%clk 0:02:42]}  O-O {[%clk 0:02:53]} 8. Re1 {[%clk 0:02:42]}  h6 {[%clk 0:02:52]} 9. c3 {[%clk 0:02:40]}  a5 {[%clk 0:02:52]} 10. a4 {[%clk 0:02:40]}  Re8 {[%clk 0:02:39]} 11. Qc2 {[%clk 0:02:39]}  b6 {[%clk 0:02:31]} 12. b3 {[%clk 0:02:32]}  Ba6 {[%clk 0:02:17]} 13. Bb2 {[%clk 0:02:32]}  Qd7 {[%clk 0:02:16]} 14. Rad1 {[%clk 0:02:31]}  Rad8 {[%clk 0:02:15]} 15. Bf1 {[%clk 0:02:25]}  Qc8 {[%clk 0:02:11]} 16. Ba3 {[%clk 0:02:18]}  Bb7 {[%clk 0:02:06]} 17. b4 {[%clk 0:02:17]}  Qa8 {[%clk 0:01:18]} 18. b5 {[%clk 0:02:15]}  Nb8 {[%clk 0:01:19]} 19. c4 {[%clk 0:02:14]}  dxe4 {[%clk 0:01:18]} 20. dxe4 {[%clk 0:02:12]}  Nd7 {[%clk 0:01:18]} 21. c5 {[%clk 0:02:10]}  Nxc5 {[%clk 0:01:18]} 22. Bxc5 {[%clk 0:02:10]}  bxc5 {[%clk 0:01:19]} 23. Qxc5 {[%clk 0:02:10]}  Nc8 {[%clk 0:00:59]} 24. Qxc7 {[%clk 0:01:53]}  Nd6 {[%clk 0:00:59]} 25. Nc4 {[%clk 0:01:53]}  Nxe4 {[%clk 0:00:55]} 26. Rxd8 {[%clk 0:01:42]}  Rxd8 {[%clk 0:00:54]} 27. Nxa5 {[%clk 0:01:35]}  Bd5 {[%clk 0:00:53]} 28. Nc6 {[%clk 0:01:32]}  Bxc6 {[%clk 0:00:48]} 29. bxc6 {[%clk 0:01:29]}  Rc8 {[%clk 0:00:44]} 30. Qb7 {[%clk 0:01:26]}  Nd6 {[%clk 0:00:24]} 31. Qxa8 {[%clk 0:01:25]}  Rxa8 {[%clk 0:00:25]} 32. Rd1 {[%clk 0:01:19]}  Bf8 {[%clk 0:00:13]} 33. Bb5 {[%clk 0:01:13]}  e4 {[%clk 0:00:08]} 34. Ne5 {[%clk 0:01:12]}  Be7 {[%clk 0:00:08]} 35. Nd7 {[%clk 0:01:12]}  Rc8 {[%clk 0:00:04]} 36. Nb6 {[%clk 0:01:11]}  Rxc6 {[%clk 0:00:02]} 1-0


[Site "https://www.chess.com"]

[Event "Titled Tuesday Blitz March 21 Early 2023"]
[White "Esipenko, Andrey"]
[Black "Sattarov, Bobir"]
[WhiteFideId "24175439"]
[BlackFideId "14203081"]
[WhiteElo "2615"]
[BlackElo "2351"]
[Result "1-0"]
[Round "06"]
[TimeControl "180+2"]
[Date "2023.03.21"]
[WhiteClock "0:00:47"]
[BlackClock "0:01:12"]

1. e4 {[%clk 0:01:56]}  e5 {[%clk 0:02:58]} 2. Nf3 {[%clk 0:01:56]}  Nc6 {[%clk 0:02:59]} 3. Bb5 {[%clk 0:01:55]}  a6 {[%clk 0:02:59]} 4. Ba4 {[%clk 0:01:55]}  Bc5 {[%clk 0:03:00]} 5. c3 {[%clk 0:01:54]}  Qf6 {[%clk 0:03:00]} 6. O-O {[%clk 0:01:50]}  Nge7 {[%clk 0:03:01]} 7. d3 {[%clk 0:01:39]}  h6 {[%clk 0:03:01]} 8. Be3 {[%clk 0:01:38]}  Ba7 {[%clk 0:03:01]} 9. Nbd2 {[%clk 0:01:38]}  O-O {[%clk 0:03:01]} 10. Re1 {[%clk 0:01:36]}  d6 {[%clk 0:03:02]} 11. h3 {[%clk 0:01:27]}  Ng6 {[%clk 0:03:01]} 12. Nf1 {[%clk 0:01:28]}  Nf4 {[%clk 0:02:59]} 13. Kh2 {[%clk 0:01:28]}  Ne7 {[%clk 0:02:56]} 14. d4 {[%clk 0:01:28]}  Neg6 {[%clk 0:02:55]} 15. Ng3 {[%clk 0:01:28]}  Be6 {[%clk 0:02:51]} 16. Bc2 {[%clk 0:01:28]}  Rfd8 {[%clk 0:02:47]} 17. Qd2 {[%clk 0:01:27]}  Nxh3 {[%clk 0:02:43]} 18. Nh5 {[%clk 0:01:27]}  Qe7 {[%clk 0:02:33]} 19. gxh3 {[%clk 0:01:27]}  Bxh3 {[%clk 0:02:15]} 20. Kxh3 {[%clk 0:01:20]}  Qe6+ {[%clk 0:02:16]} 21. Kg2 {[%clk 0:00:53]}  Qg4+ {[%clk 0:02:15]} 22. Ng3 {[%clk 0:00:54]}  Nf4+ {[%clk 0:02:15]} 23. Bxf4 {[%clk 0:00:55]}  exf4 {[%clk 0:02:16]} 24. Nh2 {[%clk 0:00:56]}  Qg5 {[%clk 0:02:15]} 25. Kh1 {[%clk 0:00:55]}  fxg3 {[%clk 0:02:15]} 26. Qxg5 {[%clk 0:00:56]}  hxg5 {[%clk 0:02:16]} 27. fxg3 {[%clk 0:00:56]}  c5 {[%clk 0:02:14]} 28. Rad1 {[%clk 0:00:56]}  cxd4 {[%clk 0:02:14]} 29. cxd4 {[%clk 0:00:56]}  Rac8 {[%clk 0:02:14]} 30. Bb3 {[%clk 0:00:57]}  Kf8 {[%clk 0:02:09]} 31. Kg2 {[%clk 0:00:57]}  f6 {[%clk 0:02:05]} 32. Ng4 {[%clk 0:00:58]}  Ke7 {[%clk 0:02:03]} 33. Ne3 {[%clk 0:00:58]}  Kd7 {[%clk 0:01:53]} 34. Rf1 {[%clk 0:00:54]}  Re8 {[%clk 0:01:51]} 35. Bd5 {[%clk 0:00:53]}  b5 {[%clk 0:01:48]} 36. Rf2 {[%clk 0:00:53]}  Rc7 {[%clk 0:01:45]} 37. Nf5 {[%clk 0:00:54]}  g6 {[%clk 0:01:38]} 38. Nh6 {[%clk 0:00:54]}  f5 {[%clk 0:01:31]} 39. exf5 {[%clk 0:00:55]}  gxf5 {[%clk 0:01:32]} 40. Nxf5 {[%clk 0:00:53]}  a5 {[%clk 0:01:24]} 41. Rh1 {[%clk 0:00:51]}  Kd8 {[%clk 0:01:12]} 42. Nxd6 {[%clk 0:00:47]} 1-0


[Site "https://www.chess.com"]

[Event "Titled Tuesday Blitz March 21 Early 2023"]
[White "Albornoz Cabrera, Carlos Daniel"]
[Black "Yilmaz, Mustafa"]
[WhiteFideId "3518736"]
[BlackFideId "6302718"]
[WhiteElo "2501"]
[BlackElo "2523"]
[Result "0-1"]
[Round "06"]
[TimeControl "180+2"]
[Date "2023.03.21"]
[WhiteClock "0:00:02"]
[BlackClock "0:00:19"]

1. Nf3 {[%clk 0:03:00]}  d5 {[%clk 0:02:58]} 2. d4 {[%clk 0:02:59]}  Nf6 {[%clk 0:02:58]} 3. c4 {[%clk 0:03:00]}  e6 {[%clk 0:02:58]} 4. Nc3 {[%clk 0:03:00]}  Bb4 {[%clk 0:02:58]} 5. cxd5 {[%clk 0:02:58]}  exd5 {[%clk 0:02:58]} 6. Bg5 {[%clk 0:02:58]}  h6 {[%clk 0:02:58]} 7. Bh4 {[%clk 0:02:58]}  O-O {[%clk 0:02:55]} 8. e3 {[%clk 0:02:57]}  Bf5 {[%clk 0:02:55]} 9. Be2 {[%clk 0:02:56]}  Nbd7 {[%clk 0:02:31]} 10. Qb3 {[%clk 0:02:55]}  Qe7 {[%clk 0:02:18]} 11. O-O {[%clk 0:02:54]}  c6 {[%clk 0:02:16]} 12. Ne5 {[%clk 0:02:35]}  Bxc3 {[%clk 0:02:06]} 13. Qxc3 {[%clk 0:02:26]}  g5 {[%clk 0:02:00]} 14. Nxd7 {[%clk 0:02:26]}  Qxd7 {[%clk 0:01:58]} 15. Bg3 {[%clk 0:02:25]}  h5 {[%clk 0:01:46]} 16. f3 {[%clk 0:02:22]}  h4 {[%clk 0:01:43]} 17. Be5 {[%clk 0:02:22]}  Qe6 {[%clk 0:01:40]} 18. e4 {[%clk 0:02:11]}  Bg6 {[%clk 0:01:33]} 19. Qe3 {[%clk 0:02:06]}  Nh7 {[%clk 0:01:19]} 20. f4 {[%clk 0:01:17]}  gxf4 {[%clk 0:01:13]} 21. Rxf4 {[%clk 0:01:17]}  f6 {[%clk 0:01:10]} 22. Bc7 {[%clk 0:01:17]}  Bxe4 {[%clk 0:01:00]} 23. Rxh4 {[%clk 0:01:10]}  Rf7 {[%clk 0:00:59]} 24. Bg3 {[%clk 0:01:09]}  Rg7 {[%clk 0:00:47]} 25. Rf1 {[%clk 0:01:07]}  Re8 {[%clk 0:00:45]} 26. Bh5 {[%clk 0:01:04]}  Bg6 {[%clk 0:00:33]} 27. Qxe6+ {[%clk 0:00:47]}  Rxe6 {[%clk 0:00:34]} 28. Bg4 {[%clk 0:00:45]}  Re4 {[%clk 0:00:30]} 29. Bc8 {[%clk 0:00:43]}  Re2 {[%clk 0:00:27]} 30. Rf2 {[%clk 0:00:36]}  Re8 {[%clk 0:00:27]} 31. Bg4 {[%clk 0:00:30]}  Ng5 {[%clk 0:00:26]} 32. Re2 {[%clk 0:00:24]}  Rge7 {[%clk 0:00:24]} 33. Rxe7 {[%clk 0:00:18]}  Rxe7 {[%clk 0:00:25]} 34. Bf4 {[%clk 0:00:13]}  Re1+ {[%clk 0:00:21]} 35. Kf2 {[%clk 0:00:12]}  Rb1 {[%clk 0:00:22]} 36. b3 {[%clk 0:00:05]}  Rb2+ {[%clk 0:00:22]} 37. Ke3 {[%clk 0:00:06]}  Rxg2 {[%clk 0:00:21]} 38. Bf3 {[%clk 0:00:04]}  Nxf3 {[%clk 0:00:18]} 39. Kxf3 {[%clk 0:00:04]}  Be4+ {[%clk 0:00:18]} 40. Ke3 {[%clk 0:00:04]}  Rxa2 {[%clk 0:00:19]} 41. Bg3 {[%clk 0:00:03]}  Rb2 {[%clk 0:00:18]} 42. Rg4+ {[%clk 0:00:02]}  Kf7 {[%clk 0:00:18]} 43. Rh4 {[%clk 0:00:03]}  Rxb3+ {[%clk 0:00:18]} 44. Kf2 {[%clk 0:00:03]}  Rb2+ {[%clk 0:00:19]} 45. Ke3 {[%clk 0:00:03]}  a5 {[%clk 0:00:19]} 46. Rh8 {[%clk 0:00:03]}  Rb3+ {[%clk 0:00:18]} 47. Kf2 {[%clk 0:00:02]}  a4 {[%clk 0:00:18]} 48. Ra8 {[%clk 0:00:03]}  a3 {[%clk 0:00:19]} 49. Bd6 {[%clk 0:00:03]}  Rb2+ {[%clk 0:00:19]} 50. Kg3 {[%clk 0:00:04]}  a2 {[%clk 0:00:20]} 51. Rf8+ {[%clk 0:00:02]}  Ke6 {[%clk 0:00:20]} 52. Bc5 {[%clk 0:00:02]}  Rg2+ {[%clk 0:00:19]} 53. Kf4 {[%clk 0:00:02]}  Rf2+ {[%clk 0:00:18]} 54. Ke3 {[%clk 0:00:01]}  Rf3+ {[%clk 0:00:19]} 55. Ke2 {[%clk 0:00:02]}  a1=Q {[%clk 0:00:19]} 0-1


[Site "https://www.chess.com"]

[Event "Titled Tuesday Blitz March 21 Early 2023"]
[White "Postny, Evgeny"]
[Black "Movahed, Sina"]
[WhiteFideId "2804344"]
[BlackFideId "42520835"]
[WhiteElo "2509"]
[BlackElo "2225"]
[Result "1-0"]
[Round "06"]
[TimeControl "180+2"]
[Date "2023.03.21"]
[WhiteClock "0:00:03"]
[BlackClock "0:00:05"]

1. e4 {[%clk 0:02:55]}  c5 {[%clk 0:02:58]} 2. Nf3 {[%clk 0:02:50]}  d6 {[%clk 0:02:56]} 3. d4 {[%clk 0:02:51]}  cxd4 {[%clk 0:02:57]} 4. Nxd4 {[%clk 0:02:51]}  Nf6 {[%clk 0:02:57]} 5. Nc3 {[%clk 0:02:51]}  a6 {[%clk 0:02:56]} 6. Be2 {[%clk 0:02:50]}  e5 {[%clk 0:02:54]} 7. Nf3 {[%clk 0:02:49]}  h6 {[%clk 0:02:54]} 8. O-O {[%clk 0:02:49]}  Be7 {[%clk 0:02:53]} 9. Re1 {[%clk 0:02:49]}  Be6 {[%clk 0:02:54]} 10. Bf1 {[%clk 0:02:46]}  Nbd7 {[%clk 0:02:54]} 11. Nd5 {[%clk 0:02:45]}  Nxd5 {[%clk 0:02:49]} 12. exd5 {[%clk 0:02:46]}  Bf5 {[%clk 0:02:50]} 13. Bd3 {[%clk 0:02:42]}  Bxd3 {[%clk 0:02:49]} 14. Qxd3 {[%clk 0:02:43]}  O-O {[%clk 0:02:49]} 15. c4 {[%clk 0:02:38]}  f5 {[%clk 0:02:48]} 16. Qe2 {[%clk 0:02:35]}  Rc8 {[%clk 0:02:47]} 17. Nd4 {[%clk 0:02:24]}  Nc5 {[%clk 0:02:23]} 18. b4 {[%clk 0:02:19]}  exd4 {[%clk 0:02:17]} 19. bxc5 {[%clk 0:02:20]}  Re8 {[%clk 0:02:16]} 20. Qe6+ {[%clk 0:01:58]}  Kh8 {[%clk 0:02:04]} 21. Qxf5 {[%clk 0:01:41]}  Rxc5 {[%clk 0:01:57]} 22. Bxh6 {[%clk 0:01:30]}  Bf6 {[%clk 0:01:34]} 23. Qh5 {[%clk 0:01:07]}  Rf8 {[%clk 0:01:05]} 24. Re4 {[%clk 0:00:51]}  Kg8 {[%clk 0:01:02]} 25. Rae1 {[%clk 0:00:48]}  Rxc4 {[%clk 0:00:54]} 26. Re8 {[%clk 0:00:29]}  Qd7 {[%clk 0:00:53]} 27. Bf4 {[%clk 0:00:24]}  Rc8 {[%clk 0:00:44]} 28. Rxc8 {[%clk 0:00:19]}  Rxc8 {[%clk 0:00:43]} 29. Qg6 {[%clk 0:00:19]}  Qf7 {[%clk 0:00:32]} 30. Qf5 {[%clk 0:00:17]}  Re8 {[%clk 0:00:32]} 31. Rxe8+ {[%clk 0:00:16]}  Qxe8 {[%clk 0:00:32]} 32. g3 {[%clk 0:00:15]}  Be5 {[%clk 0:00:24]} 33. Bg5 {[%clk 0:00:12]}  Qf7 {[%clk 0:00:20]} 34. Qxf7+ {[%clk 0:00:08]}  Kxf7 {[%clk 0:00:21]} 35. Kf1 {[%clk 0:00:09]}  d3 {[%clk 0:00:20]} 36. Ke1 {[%clk 0:00:08]}  Bc3+ {[%clk 0:00:20]} 37. Bd2 {[%clk 0:00:08]}  Bd4 {[%clk 0:00:20]} 38. Bf4 {[%clk 0:00:06]}  Bc3+ {[%clk 0:00:20]} 39. Kd1 {[%clk 0:00:06]}  Ke7 {[%clk 0:00:20]} 40. h4 {[%clk 0:00:06]}  b5 {[%clk 0:00:20]} 41. h5 {[%clk 0:00:06]}  b4 {[%clk 0:00:20]} 42. g4 {[%clk 0:00:05]}  a5 {[%clk 0:00:20]} 43. Bd2 {[%clk 0:00:05]}  Bd4 {[%clk 0:00:17]} 44. f4 {[%clk 0:00:04]}  Bc5 {[%clk 0:00:16]} 45. g5 {[%clk 0:00:04]}  a4 {[%clk 0:00:16]} 46. f5 {[%clk 0:00:05]}  Kf7 {[%clk 0:00:14]} 47. Kc1 {[%clk 0:00:02]}  Ke7 {[%clk 0:00:08]} 48. Kd1 {[%clk 0:00:02]}  Kf7 {[%clk 0:00:08]} 49. Kc1 {[%clk 0:00:03]}  Ke7 {[%clk 0:00:07]} 50. Kb1 {[%clk 0:00:03]}  a3 {[%clk 0:00:05]} 51. Bf4 {[%clk 0:00:03]}  Kf7 {[%clk 0:00:05]} 52. Bd2 {[%clk 0:00:03]}  Ke7 {[%clk 0:00:05]} 53. g6 {[%clk 0:00:03]}  Kf6 {[%clk 0:00:05]} 54. h6 {[%clk 0:00:04]}  gxh6 {[%clk 0:00:03]} 55. Bxh6 {[%clk 0:00:05]}  Bd4 {[%clk 0:00:03]} 56. Bd2 {[%clk 0:00:01]}  Bc3 {[%clk 0:00:02]} 57. Bxc3+ {[%clk 0:00:01]}  bxc3 {[%clk 0:00:03]} 58. Kc1 {[%clk 0:00:02]}  d2+ {[%clk 0:00:02]} 59. Kd1 {[%clk 0:00:02]}  Ke5 {[%clk 0:00:02]} 60. Kc2 {[%clk 0:00:03]}  Ke4 {[%clk 0:00:03]} 61. g7 {[%clk 0:00:03]}  Ke3 {[%clk 0:00:04]} 62. g8=Q {[%clk 0:00:03]}  Ke2 {[%clk 0:00:05]} 63. Qg2+ {[%clk 0:00:03]} 1-0


[Site "https://www.chess.com"]

[Event "Titled Tuesday Blitz March 21 Early 2023"]
[White "Tanenbaum, Zachary"]
[Black "Mitrabha, Guha"]
[WhiteFideId "2060850"]
[BlackFideId "5057000"]
[WhiteElo "2175"]
[BlackElo "2507"]
[Result "1-0"]
[Round "06"]
[TimeControl "180+2"]
[Date "2023.03.21"]
[WhiteClock "0:00:18"]
[BlackClock "0:00:02"]

1. e4 {[%clk 0:03:00]}  Nc6 {[%clk 0:02:56]} 2. Nf3 {[%clk 0:03:00]}  d6 {[%clk 0:02:55]} 3. d4 {[%clk 0:03:00]}  Bg4 {[%clk 0:02:52]} 4. Bb5 {[%clk 0:02:58]}  a6 {[%clk 0:02:41]} 5. Bxc6+ {[%clk 0:02:58]}  bxc6 {[%clk 0:02:31]} 6. Qd3 {[%clk 0:02:58]}  g6 {[%clk 0:02:29]} 7. Nc3 {[%clk 0:02:44]}  Bg7 {[%clk 0:02:01]} 8. e5 {[%clk 0:02:43]}  Nh6 {[%clk 0:01:50]} 9. h3 {[%clk 0:02:25]}  Bd7 {[%clk 0:01:38]} 10. Bg5 {[%clk 0:02:17]}  O-O {[%clk 0:01:28]} 11. g4 {[%clk 0:02:11]}  f6 {[%clk 0:01:28]} 12. exf6 {[%clk 0:02:06]}  exf6 {[%clk 0:01:29]} 13. Be3 {[%clk 0:02:05]}  Nf7 {[%clk 0:01:25]} 14. O-O-O {[%clk 0:02:04]}  Qb8 {[%clk 0:01:09]} 15. Rdg1 {[%clk 0:02:02]}  Qb4 {[%clk 0:00:59]} 16. h4 {[%clk 0:02:00]}  Rab8 {[%clk 0:00:57]} 17. b3 {[%clk 0:01:59]}  f5 {[%clk 0:00:52]} 18. h5 {[%clk 0:01:49]}  c5 {[%clk 0:00:42]} 19. hxg6 {[%clk 0:01:47]}  hxg6 {[%clk 0:00:40]} 20. Nd5 {[%clk 0:01:33]}  Qa3+ {[%clk 0:00:36]} 21. Kb1 {[%clk 0:01:33]}  Rfe8 {[%clk 0:00:32]} 22. Bc1 {[%clk 0:01:23]}  Qa5 {[%clk 0:00:29]} 23. Bb2 {[%clk 0:01:22]}  cxd4 {[%clk 0:00:23]} 24. Nf4 {[%clk 0:01:17]}  Bb5 {[%clk 0:00:23]} 25. Qd1 {[%clk 0:01:09]}  g5 {[%clk 0:00:19]} 26. gxf5 {[%clk 0:00:58]}  Re4 {[%clk 0:00:19]} 27. Ne6 {[%clk 0:00:51]}  Be2 {[%clk 0:00:19]} 28. Qd2 {[%clk 0:00:47]}  Qxf5 {[%clk 0:00:12]} 29. Nfxd4 {[%clk 0:00:43]}  Bxd4 {[%clk 0:00:08]} 30. Bxd4 {[%clk 0:00:38]}  Rxe6 {[%clk 0:00:05]} 31. Rh8+ {[%clk 0:00:34]}  Nxh8 {[%clk 0:00:05]} 32. Rxg5+ {[%clk 0:00:34]}  Qxg5 {[%clk 0:00:05]} 33. Qxg5+ {[%clk 0:00:35]}  Rg6 {[%clk 0:00:02]} 34. Qd5+ {[%clk 0:00:33]}  Nf7 {[%clk 0:00:03]} 35. Qe4 {[%clk 0:00:30]}  Bh5 {[%clk 0:00:03]} 36. Qf5 {[%clk 0:00:28]}  Rg1+ {[%clk 0:00:04]} 37. Kb2 {[%clk 0:00:28]}  Bg6 {[%clk 0:00:04]} 38. Qf6 {[%clk 0:00:28]}  Kf8 {[%clk 0:00:05]} 39. f4 {[%clk 0:00:26]}  Rb5 {[%clk 0:00:04]} 40. Bxg1 {[%clk 0:00:26]}  Be4 {[%clk 0:00:04]} 41. Qe6 {[%clk 0:00:20]}  Bf5 {[%clk 0:00:03]} 42. Qc4 {[%clk 0:00:19]}  c5 {[%clk 0:00:02]} 43. Qd5 {[%clk 0:00:18]} 1-0


[Site "https://www.chess.com"]

[Event "Titled Tuesday Blitz March 21 Early 2023"]
[White "Svane, Frederik"]
[Black "Harshavardhan G B"]
[WhiteFideId "12923044"]
[BlackFideId "25059009"]
[WhiteElo "2502"]
[BlackElo "2323"]
[Result "1-0"]
[Round "06"]
[TimeControl "180+2"]
[Date "2023.03.21"]
[WhiteClock "0:00:09"]
[BlackClock "0:00:07"]

1. b3 {[%clk 0:03:00]}  e5 {[%clk 0:02:59]} 2. Bb2 {[%clk 0:03:00]}  Nc6 {[%clk 0:02:58]} 3. e3 {[%clk 0:03:01]}  d6 {[%clk 0:02:56]} 4. Nf3 {[%clk 0:02:57]}  g6 {[%clk 0:02:54]} 5. d4 {[%clk 0:02:56]}  Bg7 {[%clk 0:02:47]} 6. dxe5 {[%clk 0:02:56]}  Nge7 {[%clk 0:02:44]} 7. Nc3 {[%clk 0:02:40]}  Nxe5 {[%clk 0:02:38]} 8. Nxe5 {[%clk 0:02:40]}  Bxe5 {[%clk 0:02:38]} 9. Be2 {[%clk 0:02:40]}  O-O {[%clk 0:02:38]} 10. Qd2 {[%clk 0:02:40]}  Bd7 {[%clk 0:02:36]} 11. h4 {[%clk 0:02:40]}  h5 {[%clk 0:02:35]} 12. O-O-O {[%clk 0:02:38]}  a5 {[%clk 0:02:35]} 13. g4 {[%clk 0:02:29]}  hxg4 {[%clk 0:02:34]} 14. h5 {[%clk 0:02:29]}  Kg7 {[%clk 0:02:34]} 15. Rdg1 {[%clk 0:02:25]}  Rh8 {[%clk 0:02:25]} 16. Bxg4 {[%clk 0:02:21]}  Bxg4 {[%clk 0:02:24]} 17. Rxg4 {[%clk 0:02:22]}  Qd7 {[%clk 0:02:21]} 18. Rgg1 {[%clk 0:02:22]}  Kf8 {[%clk 0:01:58]} 19. f4 {[%clk 0:02:18]}  Bg7 {[%clk 0:01:56]} 20. Ne4 {[%clk 0:02:10]}  Bxb2+ {[%clk 0:01:47]} 21. Kxb2 {[%clk 0:02:11]}  Qf5 {[%clk 0:01:42]} 22. Qd4 {[%clk 0:02:04]}  Rxh5 {[%clk 0:01:37]} 23. Ng3 {[%clk 0:01:59]}  Rxh1 {[%clk 0:01:31]} 24. Rxh1 {[%clk 0:01:26]}  Qe6 {[%clk 0:01:12]} 25. Rh7 {[%clk 0:01:11]}  Ng8 {[%clk 0:01:04]} 26. Ne4 {[%clk 0:01:10]}  c5 {[%clk 0:00:14]} 27. Qg7+ {[%clk 0:01:10]}  Ke7 {[%clk 0:00:12]} 28. Ng5 {[%clk 0:01:10]}  Qf5 {[%clk 0:00:08]} 29. Qxf7+ {[%clk 0:00:47]}  Qxf7 {[%clk 0:00:07]} 30. Rxf7+ {[%clk 0:00:48]}  Ke8 {[%clk 0:00:07]} 31. Rxb7 {[%clk 0:00:44]}  Nf6 {[%clk 0:00:07]} 32. Rg7 {[%clk 0:00:43]}  Kf8 {[%clk 0:00:03]} 33. Rxg6 {[%clk 0:00:43]}  Nd5 {[%clk 0:00:03]} 34. Rxd6 {[%clk 0:00:40]}  Nxe3 {[%clk 0:00:03]} 35. Rd3 {[%clk 0:00:37]}  Ng4 {[%clk 0:00:02]} 36. Ne6+ {[%clk 0:00:36]}  Ke7 {[%clk 0:00:02]} 37. Nxc5 {[%clk 0:00:36]}  Nf6 {[%clk 0:00:02]} 38. a3 {[%clk 0:00:35]}  Kf7 {[%clk 0:00:02]} 39. b4 {[%clk 0:00:36]}  axb4 {[%clk 0:00:02]} 40. axb4 {[%clk 0:00:37]}  Ke7 {[%clk 0:00:02]} 41. Kb3 {[%clk 0:00:37]}  Rh8 {[%clk 0:00:02]} 42. b5 {[%clk 0:00:36]}  Rh1 {[%clk 0:00:02]} 43. Kc4 {[%clk 0:00:32]}  Rc1 {[%clk 0:00:03]} 44. c3 {[%clk 0:00:32]}  Rb1 {[%clk 0:00:02]} 45. Re3+ {[%clk 0:00:31]}  Kf7 {[%clk 0:00:03]} 46. Nd3 {[%clk 0:00:28]}  Ne8 {[%clk 0:00:03]} 47. Ne5+ {[%clk 0:00:25]}  Kg7 {[%clk 0:00:02]} 48. Kc5 {[%clk 0:00:23]}  Nc7 {[%clk 0:00:02]} 49. c4 {[%clk 0:00:22]}  Ne6+ {[%clk 0:00:02]} 50. Kc6 {[%clk 0:00:19]}  Nxf4 {[%clk 0:00:03]} 51. b6 {[%clk 0:00:18]}  Ne6 {[%clk 0:00:03]} 52. Rd3 {[%clk 0:00:17]}  Kf6 {[%clk 0:00:03]} 53. Nd7+ {[%clk 0:00:15]}  Ke7 {[%clk 0:00:03]} 54. c5 {[%clk 0:00:16]}  Nd8+ {[%clk 0:00:03]} 55. Kc7 {[%clk 0:00:16]}  Ne6+ {[%clk 0:00:03]} 56. Kc8 {[%clk 0:00:16]}  Rh1 {[%clk 0:00:04]} 57. Kb7 {[%clk 0:00:06]}  Rc1 {[%clk 0:00:02]} 58. Rd5 {[%clk 0:00:04]}  Nd8+ {[%clk 0:00:02]} 59. Kc8 {[%clk 0:00:05]}  Ne6 {[%clk 0:00:02]} 60. b7 {[%clk 0:00:05]}  Nxc5 {[%clk 0:00:01]} 61. Rxc5 {[%clk 0:00:05]}  Rh1 {[%clk 0:00:01]} 62. b8=Q {[%clk 0:00:05]}  Rh8+ {[%clk 0:00:02]} 63. Kc7 {[%clk 0:00:06]}  Rxb8 {[%clk 0:00:03]} 64. Kxb8 {[%clk 0:00:07]}  Kd6 {[%clk 0:00:04]} 65. Kb7 {[%clk 0:00:06]}  Kxd7 {[%clk 0:00:04]} 66. Rc6 {[%clk 0:00:07]}  Ke7 {[%clk 0:00:05]} 67. Kb6 {[%clk 0:00:07]}  Kf7 {[%clk 0:00:06]} 68. Kc5 {[%clk 0:00:08]}  Ke7 {[%clk 0:00:06]} 69. Kd5 {[%clk 0:00:09]}  Kd7 {[%clk 0:00:07]} 70. Re6 {[%clk 0:00:09]}  Kc7 {[%clk 0:00:07]} 71. Rd6 {[%clk 0:00:09]} 1-0


[Site "https://www.chess.com"]